fUSD/lending_fUSD_20240612
["ID","MTS","AMOUNT","RATE_DAILY","PERIOD"]
[329277772,1718211053410,-382.31,0.00028563,2]
[329277773,1718211053419,-500.0,0.00028563,2]
[329277774,1718211053429,-500.0,0.00028563,2]
[329277775,1718211053438,-500.0,0.00028563,2]
[329277776,1718211053449,-500.0,0.00028563,2]
[329277777,1718211053459,-500.0,0.00028563,2]
[329277778,1718211053470,-500.0,0.00028563,2]
[329277779,1718211053479,-500.0,0.00028563,2]
[329277780,1718211053498,-500.0,0.00028563,2]
[329277781,1718211053510,-500.0,0.00028563,2]
[329277782,1718211053520,-500.0,0.00028563,2]
[329277784,1718211053530,-370.09086023,0.00028563,2]
[329277786,1718211053543,-250.0,0.00028563,2]
[329277788,1718211053555,-595.34391944,0.00028563,2]
[329277790,1718211053565,-500.0,0.00028563,2]
[329277791,1718211053577,-500.0,0.00028563,2]
[329277793,1718211053587,-500.0,0.00028563,2]
[329277795,1718211053597,-272.4,0.00028563,2]
[329277797,1718211053607,-500.0,0.00028563,2]
[329277799,1718211053618,-500.0,0.00028563,2]
[329277800,1718211053629,-500.0,0.00028563,2]
[329277801,1718211053641,-500.0,0.00028563,2]
[329277802,1718211053651,-500.0,0.00028563,2]
[329277803,1718211053662,-500.0,0.00028563,2]
[329277804,1718211053672,-500.0,0.00028563,2]
[329277805,1718211053685,-543.87278809,0.00028563,2]
[329277806,1718211053696,-500.0,0.00028563,2]
[329277807,1718211053708,-520.65718818,0.00028563,2]
[329277808,1718211053720,-538.52186123,0.00028563,2]
[329277809,1718211053731,-546.90069799,0.00028563,2]
[329277810,1718211053744,-516.22615056,0.00028563,2]
[329277811,1718211053754,-500.0,0.00028563,2]
[329277812,1718211053765,-487.92239866,0.00028563,2]
[329277813,1718211053776,-500.0,0.00028563,2]
[329277814,1718211053787,-515.28174236,0.00028563,2]
[329277815,1718211053798,-531.03395362,0.00028563,2]
[329277816,1718211053809,-500.0,0.00028563,2]
[329277817,1718211053820,-1813.42559344,0.00028594,2]
[329277818,1718211053830,-161.7109971,0.00028599,2]
[329277819,1718211053841,-157.97328599,0.00028627,2]
[329277820,1718211053851,-161.7109971,0.00028692,2]
[329277821,1718211053861,-261.55979055,0.000287,2]
[329277822,1718211053871,-500.0,0.000287,2]
[329277823,1718211053881,-561.83708435,0.000287,2]
[329277824,1718211053891,-500.0,0.000287,2]
[329277825,1718211053902,-500.0,0.000287,2]
[329277826,1718211053913,-251.91155075,0.000287,2]
[329277827,1718211053926,-500.0,0.000287,2]
[329277828,1718211053937,-500.0,0.000287,2]
[329277829,1718211053947,-500.0,0.000287,2]
[329277830,1718211053958,-183.6598415,0.000287,2]
[329277831,1718211053970,-517.18457594,0.000287,2]
[329277832,1718211053982,-500.0,0.000287,2]
[329277833,1718211053998,-500.0,0.000287,2]
[329277834,1718211054009,-500.0,0.000287,2]
[329277835,1718211054020,-500.0,0.000287,2]
[329277836,1718211054069,-500.0,0.000287,2]
[329277837,1718211054081,-432.12,0.000287,2]
[329277838,1718211054092,-500.0,0.000287,2]
[329277839,1718211054101,-500.0,0.000287,2]
[329277840,1718211054111,-500.0,0.000287,2]
[329277841,1718211054122,-500.0,0.000287,2]
[329277842,1718211054131,-500.0,0.000287,2]
[329277843,1718211054141,-500.0,0.000287,2]
[329277844,1718211054151,-615.69,0.000287,2]
[329277845,1718211054161,-500.0,0.000287,2]
[329277846,1718211054171,-500.0,0.000287,2]
[329277847,1718211054182,-161.71099739,0.00028704,2]
[329277848,1718211054192,-1813.42559344,0.00028724,2]
[329277849,1718211054204,-158.97201684,0.00028737,2]
[329277850,1718211054213,-500.0,0.00028837,2]
[329277851,1718211054224,-500.0,0.00028837,2]
[329277852,1718211054234,-500.0,0.00028837,2]
[329277853,1718211054259,-500.0,0.00028837,2]
[329277854,1718211054282,-500.0,0.00028837,2]
[329277855,1718211054297,-500.0,0.00028837,2]
[329277856,1718211054310,-500.0,0.00028837,2]
[329277857,1718211054328,-500.0,0.00028837,2]
[329277858,1718211054339,-623.87,0.00028837,2]
[329277859,1718211054349,-150.0,0.00028839,2]
[329277860,1718211054362,-1813.42559344,0.00028855,2]
[329277861,1718211054377,-291.5392,0.00028897,2]
[329277862,1718211054388,-500.0,0.00028962,15]
[329277863,1718211054399,-9975.96191023,0.00028972,2]
[329277875,1718211054540,-1178.32502374,0.00028972,2]
[329277877,1718211054552,-55565.11835915,0.00028972,2]
[329277879,1718211054566,-26821.11545556,0.00028972,2]
[329277884,1718211054615,-500.0,0.00024571,2]
[329277886,1718211054626,-500.0,0.00024708,2]
[329277888,1718211054639,-432.22396447,0.00028,2]
[329277890,1718211054650,-432.22396447,0.00028,2]
[329277892,1718211054661,-1458.35900712,0.00028972,2]
[329277895,1718211054673,-405.5664405,0.00028972,2]
[329277897,1718211054685,-555839.9085933,0.00028972,2]
[329277899,1718211054697,-1391.04,0.00028972,2]
[329277900,1718211054709,-69458.38900007,0.00028972,2]
[329277901,1718211054721,-685.50165271,0.00028972,2]
[329277902,1718211054734,-1405.2,0.00028972,2]
[329277903,1718211054748,-5490.29698143,0.00028972,2]
[329277904,1718211054761,-6218.39108876,0.00028972,2]
[329277905,1718211054791,-500.0,0.00024845,2]
[329277906,1718211054802,-219.07075033,0.00028,2]
[329277907,1718211054814,-213.15321414,0.00028,2]
[329277908,1718211054825,-86.93282007,0.00028972,2]
[329277909,1718211054838,-775.72000818,0.00028972,2]
[329277911,1718211054850,-253.9595507,0.00028972,2]
[329277912,1718211054862,-11121.45805748,0.00028972,2]
[329277913,1718211054875,-16513.83401791,0.00028972,2]
[329277914,1718211054887,-1016.1,0.00028972,2]
[329277915,1718211054900,-1049.73407402,0.00028972,2]
[329277916,1718211054987,-500.0,0.00024982,2]
[329277918,1718211055008,-432.22396447,0.00028,2]
[329277920,1718211055019,-432.22396447,0.00028,2]
[329277922,1718211055030,-432.22396447,0.00028,2]
[329277924,1718211055040,-432.22396447,0.00028,2]
[329277926,1718211055050,-432.22396447,0.00028,2]
[329277928,1718211055060,-432.22396447,0.00028,2]
[329277930,1718211055070,-432.22396447,0.00028,2]
[329277932,1718211055081,-432.22396447,0.00028,2]
[329277933,1718211055091,-432.22396447,0.00028,2]
[329277935,1718211055101,-432.22396447,0.00028,2]
[329277937,1718211055111,-124135.69253705,0.00028972,2]
[329277940,1718211055124,-2091.65,0.00028972,2]
[329277941,1718211055137,-648.14925961,0.00028972,2]
[329277942,1718211055163,-498.4271463,0.00027397,10]
[329277943,1718211055176,-242.4928537,0.00027397,10]
[329277944,1718211055186,-432.22396447,0.00028,2]
[329277945,1718211055196,-185.30942996,0.00028874,2]
[329277946,1718211055206,-395.98339524,0.00028972,2]
[329277947,1718211055320,-432.22396447,0.00028,2]
[329277948,1718211055331,-262.40603553,0.00028972,2]
[329277949,1718211055344,-6682.25255547,0.00028972,2]
[329277950,1718211055357,-1938.14415443,0.00028972,2]
[329277951,1718211055370,-35574.9608538,0.00028972,2]
[329277952,1718211055392,-432.22396447,0.00028,2]
[329277953,1718211055403,-31300.26274242,0.00028972,2]
[329277954,1718211055416,-25896.87249875,0.00028972,2]
[329277955,1718211055429,-9411.26014652,0.00028972,2]
[329277956,1718211055442,-25574.52361261,0.00028972,2]
[329277957,1718211055463,-1319.47717406,0.00028972,2]
[329277959,1718211242403,1349.85,0.00024329,30]
[329277965,1718211777299,1237.36,0.00024329,30]
[329277978,1718212232501,-262.96,0.00020984,2]
[329277979,1718212232512,-1250.0,0.00021,2]
[329277980,1718212232522,-2058.05239766,0.000212,2]
[329277981,1718212232532,-196.87,0.00021438,2]
[329277982,1718212232542,-196.22,0.0002144,2]
[329277983,1718212232553,-369.395,0.00021445,2]
[329277984,1718212232565,-169.76,0.00022535,2]
[329277985,1718212232576,-313.92,0.00022639,2]
[329277986,1718212232588,-250.0,0.00022889,2]
[329277987,1718212232599,-250.0,0.00022927,2]
[329277988,1718212232611,-1300.0,0.00023,2]
[329277989,1718212232622,-6829.09,0.00023229,2]
[329277990,1718212232632,-262.96,0.00023248,2]
[329277991,1718212232643,-250.0,0.00023264,2]
[329277992,1718212232653,-516.34,0.00023304,2]
[329277993,1718212232663,-200.02,0.00023447,2]
[329277994,1718212232674,-182.08348635,0.00024284,7]
[329277995,1718212232685,-199.58,0.00024319,2]
[329277996,1718212232696,-203.22,0.00024324,2]
[329277997,1718212232706,-500.0,0.00024328,2]
[329277998,1718212232717,-499.1497,0.00024328,2]
[329277999,1718212232728,-500.0,0.00024328,2]
[329278000,1718212232739,-500.0,0.00024328,2]
[329278001,1718212232750,-564.05,0.00024328,2]
[329278002,1718212232761,-500.0,0.00024328,2]
[329278003,1718212232772,-500.0,0.00024328,2]
[329278004,1718212232785,-500.0,0.00024328,2]
[329278005,1718212232795,-500.0,0.00024328,2]
[329278006,1718212232806,-177502.16508068,0.00024329,2]
[329278007,1718212232816,-154.48,0.00024384,2]
[329278008,1718212232828,-255.19,0.00024384,2]
[329278009,1718212232845,-500.0,0.00024465,2]
[329278010,1718212232856,-267.11929415,0.00024465,2]
[329278011,1718212232867,-500.0,0.00024465,2]
[329278012,1718212232879,-576.79273475,0.00024569,7]
[329278013,1718212232891,-252.42905979,0.0002457,2]
[329278014,1718212232918,-500.0,0.00024571,2]
[329278015,1718212232930,-500.0,0.00024571,2]
[329278016,1718212232941,-500.0,0.00024602,2]
[329278017,1718212232953,-357.46325992,0.00024602,2]
[329278018,1718212232963,-344.14294794,0.00024708,2]
[329278019,1718212232975,-500.0,0.00024739,2]
[329278020,1718212232985,-2436.30328491,0.00024798,2]
[329278021,1718212232996,-180.0,0.00024805,2]
[329278022,1718212233006,-500.0,0.00024876,2]
[329278023,1718212233017,-1003.16,0.000249,2]
[329278024,1718212233028,-6801.38955885,0.000249,2]
[329278025,1718212233039,-501.0846714,0.00024908,2]
[329278026,1718212233049,-2436.30328484,0.00024908,2]
[329278027,1718212233060,-589.28,0.00024999,2]
[329278028,1718212233073,-500.0,0.00024999,2]
[329278029,1718212233084,-500.0,0.00024999,2]
[329278030,1718212233096,-155.0,0.00025,2]
[329278031,1718212233108,-930.99721425,0.00025,2]
[329278032,1718212233119,-14477.41742419,0.00025,2]
[329278033,1718212233130,-1350.0,0.00025,2]
[329278034,1718212233142,-225.34445904,0.00025,2]
[329278035,1718212233153,-326.33400151,0.00025,2]
[329278036,1718212233164,-326.20621405,0.00025,2]
[329278037,1718212233175,-706.94373209,0.00025,2]
[329278038,1718212233185,-159.1918364,0.00025,2]
[329278039,1718212233195,-500.0,0.00025013,2]
[329278040,1718212233207,-500.0,0.00025136,2]
[329278041,1718212233219,-500.0,0.00025136,2]
[329278042,1718212233229,-500.0,0.0002515,2]
[329278043,1718212233240,-500.0,0.00025272,2]
[329278044,1718212233252,-443.52,0.00025273,2]
[329278045,1718212233264,-500.0,0.00025273,2]
[329278046,1718212233275,-589.72245916,0.00025287,2]
[329278047,1718212233285,-500.0,0.00025409,2]
[329278048,1718212233296,-500.0,0.0002541,2]
[329278049,1718212233307,-262.96,0.00025512,2]
[329278050,1718212233317,-501.0846714,0.00025532,2]
[329278051,1718212233328,-2436.30328484,0.00025532,2]
[329278052,1718212233338,-374.67556465,0.00025546,2]
[329278053,1718212233349,-500.0,0.00025547,2]
[329278054,1718212233361,-500.0,0.00025559,2]
[329278055,1718212233371,-500.0,0.00025559,2]
[329278056,1718212233382,-500.0,0.0002556,2]
[329278057,1718212233392,-500.0,0.0002556,2]
[329278058,1718212233406,-500.0,0.0002556,2]
[329278059,1718212233417,-500.0,0.0002556,2]
[329278060,1718212233427,-500.0,0.0002556,2]
[329278061,1718212233438,-500.0,0.0002556,2]
[329278062,1718212233449,-500.0,0.0002556,2]
[329278063,1718212233459,-500.0,0.0002556,2]
[329278064,1718212233470,-500.0,0.0002556,2]
[329278065,1718212233481,-500.0,0.0002556,2]
[329278066,1718212233491,-500.0,0.0002556,2]
[329278067,1718212233502,-592.86868101,0.0002556,2]
[329278069,1718212233512,-500.0,0.0002556,2]
[329278071,1718212233523,-500.0,0.0002556,2]
[329278073,1718212233534,-247.96601837,0.0002556,2]
[329278075,1718212233552,-500.0,0.00025684,2]
[329278077,1718212233563,-500.0,0.00025696,2]
[329278079,1718212233574,-500.0,0.00025696,2]
[329278081,1718212233586,-500.0,0.00025697,2]
[329278084,1718212233597,-500.0,0.00025697,2]
[329278085,1718212233607,-500.0,0.00025697,2]
[329278087,1718212233618,-500.0,0.00025697,2]
[329278088,1718212233629,-500.0,0.00025697,2]
[329278089,1718212233640,-500.0,0.00025697,2]
[329278090,1718212233651,-500.0,0.00025697,2]
[329278091,1718212233661,-500.0,0.00025697,2]
[329278092,1718212233671,-500.0,0.00025697,2]
[329278093,1718212233683,-500.0,0.00025697,2]
[329278094,1718212233693,-500.0,0.00025697,2]
[329278095,1718212233704,-500.0,0.00025821,2]
[329278096,1718212233714,-454.93,0.00025833,2]
[329278097,1718212233724,-500.0,0.00025833,2]
[329278098,1718212233735,-500.0,0.00025834,2]
[329278099,1718212233746,-553.94,0.00025834,2]
[329278100,1718212233758,-467.17606007,0.00025834,2]
[329278101,1718212233769,-500.0,0.00025834,2]
[329278102,1718212233781,-500.0,0.00025834,2]
[329278103,1718212233793,-500.0,0.00025834,2]
[329278104,1718212233803,-500.0,0.00025834,2]
[329278105,1718212233814,-500.0,0.00025834,2]
[329278106,1718212233826,-500.0,0.00025834,2]
[329278107,1718212233840,-500.0,0.00025834,2]
[329278108,1718212233851,-500.0,0.00025958,2]
[329278109,1718212233868,-500.0,0.0002597,2]
[329278110,1718212233880,-500.0,0.00025971,2]
[329278111,1718212233891,-290.06243101,0.00025971,2]
[329278112,1718212233919,-500.0,0.00025971,2]
[329278113,1718212233930,-500.0,0.00025971,2]
[329278114,1718212233941,-500.0,0.00025971,2]
[329278115,1718212233951,-500.0,0.00025971,2]
[329278116,1718212233962,-500.0,0.00025971,2]
[329278117,1718212233973,-500.0,0.00025971,2]
[329278118,1718212233984,-500.0,0.00026095,2]
[329278119,1718212233994,-500.0,0.00026107,2]
[329278120,1718212234007,-500.0,0.00026108,2]
[329278121,1718212234017,-500.0,0.00026108,2]
[329278122,1718212234028,-500.0,0.00026108,2]
[329278123,1718212234038,-501.0846714,0.00026156,2]
[329278124,1718212234048,-2436.30328484,0.00026156,2]
[329278125,1718212234059,-500.0,0.00026232,2]
[329278126,1718212234069,-500.0,0.00026244,2]
[329278127,1718212234080,-500.0,0.00026245,2]
[329278128,1718212234091,-593.91350174,0.00026245,2]
[329278129,1718212234101,-500.0,0.00026245,2]
[329278130,1718212234112,-500.0,0.00026369,2]
[329278131,1718212234123,-639.5,0.00026381,2]
[329278132,1718212234133,-500.0,0.00026382,2]
[329278133,1718212234144,-500.0,0.00026382,2]
[329278134,1718212234155,-500.0,0.00026506,2]
[329278135,1718212234166,-500.0,0.00026519,2]
[329278136,1718212234177,-500.0,0.00026519,2]
[329278137,1718212234188,-1003.16,0.0002655,2]
[329278138,1718212234199,-500.0,0.00026643,2]
[329278139,1718212234210,-282.69940435,0.00026656,2]
[329278140,1718212234223,-500.0,0.00026656,2]
[329278141,1718212234233,-501.0846714,0.0002678,2]
[329278142,1718212234244,-2436.30328484,0.0002678,2]
[329278143,1718212234256,-500.0,0.0002678,2]
[329278144,1718212234266,-500.0,0.00026793,2]
[329278145,1718212234278,-500.0,0.00026917,2]
[329278146,1718212234288,-326.3,0.0002693,2]
[329278147,1718212234299,-17804.38443806,0.00027,2]
[329278148,1718212234313,-150.0,0.00027,2]
[329278149,1718212234324,-1400.0,0.00027,2]
[329278150,1718212234335,-500.0,0.00027054,2]
[329278151,1718212234346,-500.0,0.00027191,2]
[329278152,1718212234357,-2013.69130441,0.000272,2]
[329278153,1718212234373,-500.0,0.00027328,2]
[329278154,1718212234385,-162.12,0.00027397,2]
[329278155,1718212234397,-150.0,0.00027397,2]
[329278156,1718212234410,-322.85,0.00027397,10]
[329278157,1718212234426,-563.63,0.00027397,10]
[329278158,1718212234452,-469.69,0.00027397,10]
[329278159,1718212234471,-263.13,0.000274,2]
[329278160,1718212234483,-501.0846714,0.00027404,2]
[329278161,1718212234495,-2436.30328484,0.00027404,2]
[329278162,1718212234505,-4876.66,0.00027431,2]
[329278163,1718212234516,-500.0,0.00027465,2]
[329278164,1718212234532,-500.0,0.00027602,2]
[329278165,1718212234543,-580.67807697,0.00027739,2]
[329278166,1718212234554,-262.96,0.00027776,2]
[329278167,1718212234564,-266.2781261,0.000279,2]
[329278168,1718212234574,-151.70660803,0.00027927,2]
[329278169,1718212234584,-224.98486477,0.00028,2]
[329278170,1718212234594,-469.26225557,0.00028,2]
[329278171,1718212234606,-200.0,0.00028,2]
[329278172,1718212234620,-5553.1073213,0.00028,2]
[329278173,1718212234643,-6038.64619572,0.00028,2]
[329278174,1718212234655,-501.0846714,0.00028028,2]
[329278175,1718212234667,-2436.30328484,0.00028028,2]
[329278176,1718212234677,-500.0,0.00028049,2]
[329278177,1718212234687,-500.0,0.00028049,2]
[329278178,1718212234698,-500.0,0.00028049,2]
[329278179,1718212234709,-500.0,0.00028049,2]
[329278180,1718212234721,-500.0,0.00028049,2]
[329278181,1718212234736,-500.0,0.00028049,2]
[329278182,1718212234749,-150.0,0.00028118,2]
[329278183,1718212234760,-1003.16,0.000282,2]
[329278184,1718212234773,-501.0846714,0.00028652,2]
[329278185,1718212234785,-2436.30328484,0.00028652,2]
[329278186,1718212234797,-150.0,0.00028839,2]
[329278187,1718212234810,-17000.0,0.000289,2]
[329278188,1718212234821,-181.77894766,0.0002897,2]
[329278189,1718212234832,-1204.75428974,0.00028972,2]
[329278190,1718212234848,-387.40642,0.00028972,2]
[329278191,1718212234860,-250.17,0.00028976,2]
[329278192,1718212234873,-150.0,0.00028976,2]
[329278193,1718212234886,-150.0,0.00028976,2]
[329278194,1718212234927,-150.0,0.00028976,2]
[329278195,1718212234938,-465.57627285,0.00028989,30]
[329278196,1718212234951,-1800.0,0.00029,30]
[329278197,1718212234970,-2066.03070451,0.00029,5]
[329278198,1718212234983,-3000.0,0.00029,2]
[329278199,1718212234993,-409.03304179,0.00029,2]
[329278200,1718212235004,-947.07748764,0.00029,2]
[329278201,1718212235018,-1450.0,0.00029,2]
[329278202,1718212235032,-155.0,0.00029,7]
[329278203,1718212235042,-714.70400096,0.00029,2]
[329278204,1718212235053,-1489.8087426,0.00029,2]
[329278205,1718212235067,-5000.0,0.00029,2]
[329278206,1718212235078,-8009.96823634,0.00029,2]
[329278207,1718212235091,-150.0,0.00029038,2]
[329278208,1718212235105,-1000.0,0.00029041,14]
[329278209,1718212235118,-263.13,0.0002906,2]
[329278210,1718212235129,-50000.0,0.0002907,2]
[329278211,1718212235141,-1121.90012724,0.00029088,2]
[329278212,1718212235155,-767.92737443,0.000291,4]
[329278213,1718212235166,-345.05872751,0.00029106,2]
[329278214,1718212235178,-150.0,0.00029117,2]
[329278215,1718212235189,-150.0,0.00029145,2]
[329278216,1718212235200,-791.0,0.00029148,2]
[329278217,1718212235211,-684.0,0.00029148,2]
[329278218,1718212235222,-150.0,0.00029152,2]
[329278219,1718212235235,-150.0,0.00029179,2]
[329278220,1718212235247,-150.0,0.00029185,2]
[329278221,1718212235259,-150.0,0.000292,2]
[329278222,1718212235270,-150.0,0.00029206,2]
[329278223,1718212235282,-10000.0,0.00029224,2]
[329278224,1718212235294,-500.0,0.00029235,15]
[329278225,1718212235306,-501.0846714,0.00029276,15]
[329278226,1718212235318,-2436.30328484,0.00029276,15]
[329278227,1718212235328,-150.0,0.00029284,2]
[329278228,1718212235340,-738.10572249,0.000293,2]
[329278229,1718212235352,-2000.0,0.000293,2]
[329278230,1718212235365,-1237.36,0.0002931,30]
[329278231,1718212235375,-150.0,0.00029322,2]
[329278232,1718212235387,-925.68674647,0.000294,2]
[329278233,1718212235398,-150.0,0.00029426,2]
[329278234,1718212235409,-791.0,0.00029449,2]
[329278235,1718212235421,-684.0,0.00029449,2]
[329278236,1718212235431,-150.0,0.00029468,2]
[329278237,1718212235442,-4809.68444976,0.00029486,61]
[329278238,1718212235452,-150.0,0.00029499,2]
[329278239,1718212235470,-226.92022958,0.000295,3]
[329278240,1718212235485,-500.0,0.00029508,15]
[329278241,1718212235496,-150.0,0.00029514,2]
[329278242,1718212235506,-150.0,0.00029514,2]
[329278243,1718212235517,-150.0,0.0002956,2]
[329278244,1718212235528,-150.0,0.00029564,2]
[329278245,1718212235539,-150.0,0.00029579,2]
[329278246,1718212235549,-1962.15392969,0.00029589,14]
[329278247,1718212235560,-150.0,0.00029617,2]
[329278248,1718212235571,-150.0,0.00029636,2]
[329278249,1718212235582,-150.0,0.00029638,2]
[329278250,1718212235594,-150.0,0.00029642,2]
[329278251,1718212235604,-150.0,0.00029661,2]
[329278252,1718212235616,-150.0,0.00029687,2]
[329278253,1718212235627,-509.99926787,0.00029699,2]
[329278254,1718212235637,-280.0,0.000297,2]
[329278255,1718212235648,-150.0,0.00029718,2]
[329278256,1718212235659,-150.0,0.00029736,2]
[329278257,1718212235670,-150.0,0.00029738,2]
[329278258,1718212235681,-150.0,0.00029739,2]
[329278259,1718212235692,-150.0,0.00029743,2]
[329278260,1718212235703,-150.0,0.00029743,2]
[329278261,1718212235714,-150.0,0.00029745,2]
[329278262,1718212235725,-791.0,0.0002975,2]
[329278263,1718212235737,-684.0,0.0002975,2]
[329278264,1718212235749,-168.28627813,0.0002975,2]
[329278265,1718212235760,-150.0,0.00029751,2]
[329278266,1718212235771,-200.0,0.00029759,2]
[329278267,1718212235782,-500.0,0.00029759,2]
[329278268,1718212235792,-200.0,0.0002976,2]
[329278269,1718212235802,-1000.0,0.0002976,30]
[329278270,1718212235813,-500.0,0.0002976,2]
[329278271,1718212235825,-500.0,0.0002976,2]
[329278272,1718212235840,-200.0,0.0002976,2]
[329278273,1718212235851,-150.0,0.00029762,2]
[329278274,1718212235861,-150.0,0.00029763,2]
[329278275,1718212235872,-150.0,0.00029763,2]
[329278276,1718212235883,-150.0,0.00029769,2]
[329278277,1718212235907,-150.0,0.00029772,2]
[329278278,1718212235921,-150.0,0.00029772,2]
[329278279,1718212235934,-150.0,0.00029773,2]
[329278280,1718212236135,-150.0,0.00029773,2]
[329278281,1718212236150,-150.0,0.00029775,2]
[329278282,1718212236163,-150.0,0.00029777,2]
[329278283,1718212236174,-150.0,0.00029779,2]
[329278284,1718212236184,-500.0,0.00029781,15]
[329278285,1718212236194,-150.0,0.00029782,2]
[329278286,1718212236205,-150.0,0.0002979,2]
[329278287,1718212236216,-150.0,0.00029793,2]
[329278288,1718212236227,-150.0,0.00029793,2]
[329278289,1718212236238,-150.0,0.00029796,2]
[329278290,1718212236249,-150.0,0.00029798,2]
[329278291,1718212236260,-95043.31691911,0.000298,7]
[329278292,1718212236271,-3032.7921161,0.000298,7]
[329278293,1718212236282,-967.26377501,0.000298,7]
[329278294,1718212236293,-155.0,0.000298,2]
[329278295,1718212236305,-150.0,0.00029809,2]
[329278296,1718212236316,-150.0,0.00029809,2]
[329278297,1718212236328,-150.0,0.00029813,2]
[329278298,1718212236340,-150.0,0.0002982,2]
[329278299,1718212236352,-150.0,0.00029824,2]
[329278300,1718212236364,-150.0,0.00029826,2]
[329278301,1718212236376,-150.0,0.0002983,2]
[329278302,1718212236388,-150.0,0.0002983,2]
[329278303,1718212236399,-150.0,0.00029839,2]
[329278304,1718212236409,-150.0,0.00029842,2]
[329278305,1718212236420,-150.0,0.00029844,2]
[329278306,1718212236430,-150.0,0.00029847,2]
[329278307,1718212236442,-199.81622812,0.00029848,2]
[329278308,1718212236454,-1297.347957,0.0002985,2]
[329278309,1718212236465,-150.0,0.00029853,2]
[329278310,1718212236475,-150.0,0.00029853,2]
[329278311,1718212236487,-150.0,0.0002986,2]
[329278312,1718212236501,-150.0,0.00029864,2]
[329278313,1718212236513,-150.0,0.00029876,2]
[329278314,1718212236524,-150.0,0.0002988,2]
[329278315,1718212236535,-157.70078152,0.00029881,2]
[329278316,1718212236546,-176.1287082,0.00029881,2]
[329278317,1718212236563,-150.0,0.0002989,2]
[329278318,1718212236581,-182.43980573,0.0002989,2]
[329278319,1718212236601,-263.13,0.0002989,2]
[329278320,1718212236624,-150.0,0.00029895,2]
[329278321,1718212236642,-150.0,0.00029895,2]
[329278322,1718212236657,-150.0,0.00029897,2]
[329278323,1718212236672,-676.15268185,0.00029898,2]
[329278324,1718212236683,-174.47135579,0.00029898,2]
[329278325,1718212236694,-161.84597815,0.00029898,2]
[329278326,1718212236706,-1292.2199976,0.00029898,2]
[329278327,1718212236721,-629.19479763,0.00029898,2]
[329278328,1718212236737,-1216.58652271,0.00029898,2]
[329278329,1718212236749,-204.48397636,0.00029898,2]
[329278330,1718212236761,-1292.2199976,0.00029898,2]
[329278331,1718212236773,-1292.2199976,0.00029898,2]
[329278332,1718212236785,-1292.2199976,0.00029899,2]
[329278333,1718212236796,-1292.2199976,0.00029899,2]
[329278334,1718212236809,-1292.2199976,0.00029899,2]
[329278335,1718212236821,-629.19479763,0.00029899,2]
[329278336,1718212236835,-1216.58652271,0.00029899,2]
[329278337,1718212236848,-1292.2199976,0.00029899,2]
[329278338,1718212236861,-1292.2199976,0.00029899,2]
[329278339,1718212236872,-1292.2199976,0.00029899,2]
[329278340,1718212236884,-1292.2199976,0.000299,2]
[329278341,1718212236911,-1292.2199976,0.000299,2]
[329278342,1718212236928,-174.05631097,0.000299,2]
[329278343,1718212236939,-1292.2199976,0.000299,2]
[329278344,1718212236950,-151.70660802,0.000299,2]
[329278345,1718212236963,-501.0846714,0.000299,15]